Cogmind - Beta 14 @@@ ROGUE MODE // 2025.03.13 @ 19:01:26 Player: Dosh Result: Destroyed by S-27 Virus with Autogun Performance ------------- Evolutions (3) 1500 Regions Visited (8) 1600 Robots Destroyed (157) 785 Value Destroyed (4943) 4943 Prototype IDs (8) 160 Alien Tech Used (0) 0 Bonus (741) 741 TOTAL SCORE: 9729 Bonus ------- High Alert Combat Kills 541 Entered Garrisons 200 Cogmind --------- Core Integrity 0/700 Matter 160/300 Energy 100/100 System Corruption 6% Temperature Cool (0) Movement Flying (35) Location -7/Factory Parts ------- > --- POWER (1) -------- (None) > --- PROPULSION (3) --- Improved Cesium-ion Thruster > --- UTILITY (7) ------ Transport Network Coupler Advanced Hacking Suite > --- WEAPON (2) ------- (None) > --- INVENTORY (5) ---- Improved Trap Extractor (0/6) Mini Assault Cannon Datajack Multitool Peak State ------------ > --- POWER ------------ Micro Fission Core > --- PROPULSION ------- Medium Treads Medium Treads Armored Medium Treads > --- UTILITY ---------- Improved Heat Sink Large Storage Unit Hardened Heavy Armor Plating Makeshift System Shield High-powered Tractor Beam > --- WEAPON ----------- Mini Assault Cannon Mini Assault Cannon > --- INVENTORY -------- Surge Thruster Nuclear Pulse Array Hardened Medium Armor Plating Hardened Medium Armor Plating Advanced Hacking Suite System Shield System Restoration Module Trap Extractor Mini Assault Cannon Missile Launcher Datajack Multitool Ripper [Rating: 54] Favorites ----------- Power Improved Ion Engine Engine Improved Ion Engine Power Core Micro Fission Core Propulsion Light Treads Treads Light Treads Wheel Subdweller Monowheel Flight Unit Improved Cesium-ion Thruster Utility Makeshift System Shield Device Subdweller Optics Storage Large Storage Unit Processor Advanced Targeting Computer Hackware Makeshift System Shield Protection Improved Light Armor Plating Weapon Mini Assault Cannon Ballistic Gun Assault Rifle Ballistic Cannon Mini Assault Cannon Launcher Missile Launcher Special Weapon Multitool Slashing Weapon Ripper Build | -11 -10 -10 -8 -8 -8 -7 -7 -7 ------- Run | Yrd Mat Sub Mat Gar Mat Fac Was Fac Slots Evolved 6 | . . . 4 . . 2 . . Power . | . . . . . . . . . Propulsion 1 | . . . 1 . . . . . Utility 5 | . . . 3 . . 2 . . Weapon . | . . . . . . . . . Parts Attached 160 | 6 3 39 29 15 20 48 . . Power 10 | 1 1 1 4 1 1 1 . . Engine 7 | 1 1 1 3 . . 1 . . Core 3 | . . . 1 1 1 . . . Reactor . | . . . . . . . . . Propulsion 26 | 2 1 7 7 1 2 6 . . Treads 16 | 2 1 3 7 1 2 . . . Leg . | . . . . . . . . . Wheel 4 | . . 4 . . . . . . Hover . | . . . . . . . . . Flight 6 | . . . . . . 6 . . Utility 53 | 1 1 4 12 6 10 19 . . Device 26 | . . 1 5 3 9 8 . . Storage 3 | 1 . 1 1 . . . . . Processor 4 | . . . 2 . . 2 . . Hackware 7 | . . . 1 . . 6 . . Protection 13 | . 1 2 3 3 1 3 . . Artifact . | . . . . . . . . . Weapon 71 | 2 . 27 6 7 7 22 . . Energy Gun . | . . . . . . . . . Energy Cannon . | . . . . . . . . . Ballistic Gun 21 | 2 . 17 2 . . . . . Ballistic Cannon 15 | . . . 4 3 4 4 . . Launcher 4 | . . . . 1 . 3 . . Special Weapon 11 | . . . . 2 3 6 . . Impact Weapon . | . . . . . . . . . Slashing Weapon 20 | . . 10 . 1 . 9 . . Piercing Weapon . | . . . . . . . . . Special Melee Weapon . | . . . . . . . . . Unidentified Prototypes 3 | . . . 2 . . 1 . . Parts Lost 29 | . 1 10 2 1 . 11 . 4 Power 4 | . 1 2 . . . 1 . . Propulsion 8 | . . 4 . . . 4 . . Utility 13 | . . 2 2 1 . 5 . 3 Weapon 4 | . . 2 . . . 1 . 1 Highest Loss Streak 5 | . 1 3 1 1 . 5 . 4 To Critical Strikes . | . . . . . . . . . Average Slot Usage (%) 91 | . 98 90 96 93 89 81 53 42 Engine 6 | . 13 10 4 7 . . . . Core 2 | . . . 3 1 8 6 . . Treads 22 | . 27 23 27 27 26 1 . . Wheel 1 | . . 4 . . . . . . Flight 2 | . . . . . . 16 7 7 Device 7 | . . 7 9 8 9 7 . . Storage 9 | . 14 12 9 9 9 . . . Processor 3 | . . . 6 3 . 9 7 7 Hackware 6 | . . . 8 9 9 18 23 16 Protection 6 | . 12 2 8 9 8 6 7 4 Ballistic Gun 10 | . 28 23 3 . . . . . Ballistic Cannon 7 | . . . 14 15 17 5 . . Slashing Weapon 2 | . . 4 . 2 . 6 7 5 Peak Build Rating 54 | 6 7 15 41 50 51 54 26 26 Average Rating 28 | 4 6 11 33 43 50 44 26 22 On Entrance 24 | . 6 7 12 41 50 51 26 26 Naked Turns . | . . . . . . . . . Heaviest Build 56 | 12 15 25 41 56 55 55 5 5 Greatest Support 83 | 40 40 40 76 83 83 83 6 6 Greatest Overweight (x) 3 | 3 . 2 . . . 1 . . Average Overweight (x) . | . . . . . . . . . Largest Inventory Capacity 15 | 8 8 10 15 15 15 15 5 5 Average Capacity 11 | 7 8 9 14 15 15 5 5 5 Most Carried 15 | 1 8 10 15 15 15 15 4 4 Average Carried 10 | . 4 8 14 14 14 5 4 4 Final Capacity 15 | 8 8 10 15 15 15 15 5 5 Final Carried 15 | 1 8 10 15 15 15 15 4 4 Class Distribution -------------------- 77% | Mutant 10% | Derelict-Mutant 7% | Hacker-Mutant 3% | Hacker-Sprinter Dominant Class ---------------- Mutant | -10/Materials Mutant | -10/Subcaves Mutant | -8/Materials Mutant | -8/Garrison Mutant | -8/Materials Hacker-Mutant | -7/Factory Hacker-Mutant | -7/Waste Hacker-Mutant | -7/Factory Resources | -11 -10 -10 -8 -8 -8 -7 -7 -7 ----------- Run | Yrd Mat Sub Mat Gar Mat Fac Was Fac Matter Collected 5329 | 232 273 851 1294 621 1304 754 . . Remotely 1239 | . . . . . 1002 237 . . Salvage Created 4778 | . 320 856 1648 483 829 642 . . Parts 293 | . 26 58 84 36 45 44 . . Haulers Intercepted 11 | . 2 . 5 . 3 1 . . Recyclers Shooed 4 | . 1 . . . 3 . . . Parts Field Recycled . | . . . . . . . . . Retrieved Matter . | . . . . . . . . . Parts Self-Destructed 12 | . . 12 . . . . . . Prevented . | . . . . . . . . . Kills | -11 -10 -10 -8 -8 -8 -7 -7 -7 ------- Run | Yrd Mat Sub Mat Gar Mat Fac Was Fac Combat Hostiles Destroyed 116 | . 7 21 29 24 21 14 . . Melee 1 | . . . . . . 1 . . Guns 37 | . 7 21 9 . . . . . Cannons 61 | . . . 20 13 21 7 . . AOE 17 | . . . . 11 . 6 . . Classes Destroyed 18 | . 5 3 6 1 1 2 . . Worker 7 | . 2 . 2 . 1 2 . . Builder 3 | . . . . . 2 1 . . Tunneler 2 | . . . 1 . . 1 . . Hauler 11 | . 2 . 5 . 3 1 . . Recycler 6 | . . . 1 . 4 1 . . Mechanic 1 | . . . 1 . . . . . Operator 1 | . . . . . . 1 . . Watcher 10 | . 1 . 4 . 2 3 . . Swarmer 28 | . 4 4 . 8 5 7 . . Cutter 3 | . . . . 3 . . . . Grunt 37 | . 3 1 13 7 10 3 . . Brawler 2 | . . . 1 . 1 . . . Duelist 2 | . . . 1 . 1 . . . Sentry 24 | . . 1 12 6 3 2 . . Hunter 3 | . . . 2 . 1 . . . Programmer 2 | . . . . . . 2 . . Artisan 1 | . . 1 . . . . . . Subdweller 15 | . . 15 . . . . . . Best Kill Streak 13 | . 3 4 3 13 7 4 . . Combat Bots Only 13 | . 2 4 3 13 3 4 . . Max Kills in Single Turn 7 | . 2 1 2 7 2 2 . . Gunslinging . | . . . . . . . . . Exploded 7 | . . . . 7 . 2 . . Melee 1 | . . . . . . 1 . . Uniques/NPCs Destroyed . | . . . . . . . . . Combat | -11 -10 -10 -8 -8 -8 -7 -7 -7 -------- Run | Yrd Mat Sub Mat Gar Mat Fac Was Fac Hostile Shots Fired 763 | . 25 98 102 96 125 279 . 38 Missed 256 | . 4 26 22 27 31 135 . 11 Damage Taken 6897 | . 204 1302 1009 844 1231 1912 . 395 Core 1191 | . 27 152 135 69 98 414 . 296 Absorbed by Shields 603 | . . . 254 292 43 14 . . Redirected to Shielding 104 | . . . . . . 82 . 22 Regen/Repaired (Parts) 802 | . 38 . 75 . 644 45 . . Core Remaining (%) 57 | 100 . 28 . . 45 . . . Volleys Fired 389 | . 38 75 106 52 83 35 . . Largest 2 | . 2 2 2 2 2 2 . . Hottest 96 | . 40 58 96 96 96 96 . . Shots Fired 744 | . 76 147 208 94 166 53 . . Gun 309 | . 76 147 86 . . . . . Cannon 421 | . . . 122 90 166 43 . . Launcher 12 | . . . . 4 . 8 . . Special 2 | . . . . . . 2 . . Kinetic 734 | . 76 147 208 94 166 43 . . Thermal 2 | . . . . . . 2 . . Explosive 8 | . . . . . . 8 . . Electromagnetic . | . . . . . . . . . Robot Hit Streak 19 | . 6 18 19 17 9 5 . . Robot Miss Streak 4 | . 4 3 4 3 4 4 . . Penetration Max 1 | . . . 1 . . . . . Secondary Targets . | . . . . . . . . . Shots Hit Robots 495 | . 46 120 136 49 96 46 . 2 Core Hits 224 | . 19 45 65 32 35 28 . . Critical Kills . | . . . . . . . . . Critical Parts Destroyed 2 | . 1 1 . . . . . . Critical Strikes 27 | . 1 1 7 1 7 10 . . Destroy 2 | . 1 1 . . . . . . Blast 17 | . . . 7 1 7 2 . . Sever 8 | . . . . . . 8 . . Melee Attacks 126 | . . 31 . 12 . 78 . 5 Impact . | . . . . . . . . . Slashing 126 | . . 31 . 12 . 78 . 5 Piercing . | . . . . . . . . . Sneak Attacks 8 | . . . . . . 8 . . Combat Hostiles . | . . . . . . . . . Follow-up Attacks . | . . . . . . . . . Damage Inflicted 13586 | . 610 2036 3329 1987 2985 2555 . 84 Guns 3683 | . 605 2036 1042 . . . . . Cannons 6868 | . . . 2240 1289 2860 479 . . Explosions 1383 | . . . . 680 . 703 . . Melee 1457 | . . . . . . 1373 . 84 Ramming 195 | . 5 . 47 18 125 . . . Kinetic 11231 | . 605 2036 3282 1969 2860 479 . . Thermal . | . . . . . . . . . Explosive 703 | . . . . . . 703 . . Electromagnetic . | . . . . . . . . . Impact . | . . . . . . . . . Slashing 1457 | . . . . . . 1373 . 84 Piercing . | . . . . . . . . . Highest Corruption 6 | . . . . . . 6 6 6 Average Corruption 2 | . . . . . . 1 6 6 Corruption Purged 3 | . . . . . . 3 . . Corruption Blocked . | . . . . . . . . . Effects 6 | . . . . . . 2 2 2 Message Errors 2 | . . . . . . . 1 1 Heat Flow Errors 1 | . . . . . . . . 1 Parts Fused 1 | . . . . . . . 1 . Misfires 1 | . . . . . . 1 . . Alerts 1 | . . . . . . 1 . . Overload Shots . | . . . . . . . . . Overflow Damage 338 | . . . 2 37 109 190 . . Projectiles 142 | . . . 2 34 106 . . . Explosions 34 | . . . . 3 . 31 . . Melee 162 | . . . . . 3 159 . . Knockbacks 61 | . . . 13 11 34 3 . . Impact 1 | . . . 1 . . . . . Kinetic 56 | . . . 10 11 32 3 . . Secondary 4 | . . . 2 . 2 . . . Self-Inflicted Damage 95 | . . . . 61 . 34 . . Shots 3 | . . . . 2 . 1 . . Rammed 27 | . 3 . 2 5 17 . . . Targets Rammed 34 | . 3 . 4 6 21 . . . Kicked . | . . . . . . . . . Crushed 7 | . . . 2 1 4 . . . Highest Temperature 430 | . 2 2 213 345 430 312 . 263 Average Temperature 121 | . 2 2 61 103 159 114 . 141 Received Heat Transfer 1908 | . 66 240 356 338 516 392 . . Effects 9 | . . . . 2 6 1 . . Shutdowns 2 | . . . . . 2 . . . Energy Bleed 1 | . . . . . 1 . . . Interference 2 | . . . . 1 . 1 . . Matter Decay 2 | . . . . 1 1 . . . Short Circuit 1 | . . . . . 1 . . . Damage (minor) 1 | . . . . . 1 . . . Siege Activations . | . . . . . . . . . Robots Corrupted 1 | . . . . . 1 . . . Combat Hostiles . | . . . . . . . . . Parts Fried 2 | . . . . . 2 . . . Impact Corruptions 2 | . . . . . 2 . . . Robots Melted . | . . . . . . . . . Combat Hostiles . | . . . . . . . . . Parts Melted . | . . . . . . . . . Heat Transferred . | . . . . . . . . . Parts Sabotaged . | . . . . . . . . . Parts Stolen . | . . . . . . . . . Parts Stripped . | . . . . . . . . . Power Chain Reactions . | . . . . . . . . . Alert | -11 -10 -10 -8 -8 -8 -7 -7 -7 ------- Run | Yrd Mat Sub Mat Gar Mat Fac Was Fac Peak Influence 991 | . 165 . 286 928 991 822 230 177 Initial 452 | . . . . 129 452 231 200 161 Average 384 | . 33 . 161 677 654 459 218 159 Maximum Alert Level 3 | . . . 1 3 3 3 1 . Low Security (%) 38 | 100 100 . 74 12 . . . 100 Level 1 15 | . . . 25 . . 37 100 . Level 2 26 | . . . . 30 53 58 . . Level 3 19 | . . . . 56 46 4 . . Level 4 . | . . . . . . . . . Level 5 . | . . . . . . . . . High Security . | . . . . . . . . . Max Security . | . . . . . . . . . Squads Dispatched 30 | . 3 . 8 . 3 16 . . Investigation 16 | . 1 . 5 . 2 8 . . Extermination 4 | . . . . . . 4 . . Reinforcement 4 | . 2 . . . 1 1 . . Assault . | . . . . . . . . . Garrison 6 | . . . 3 . . 3 . . Intercept . | . . . . . . . . . Searches Triggered 2 | . . . . . . 2 . . Construction Impeded 2 | . . . . . 1 1 . . Haulers Reinforced . | . . . . . . . . . Active Scanning Responses . | . . . . . . . . . Cargo Convoy Interrupts 1 | . . . . . . 1 . . Stealth | -11 -10 -10 -8 -8 -8 -7 -7 -7 --------- Run | Yrd Mat Sub Mat Gar Mat Fac Was Fac Distress Signals 12 | . 1 . 4 . 3 4 . . Communications Jammed . | . . . . . . . . . Distress Signals . | . . . . . . . . . Times Spotted 250 | . 15 22 43 24 46 91 5 4 Peak Tracking Total 17 | . 4 4 6 10 5 17 5 4 Tactical Retreats 37 | . 3 2 1 . 8 23 . . Traps | -11 -10 -10 -8 -8 -8 -7 -7 -7 ------- Run | Yrd Mat Sub Mat Gar Mat Fac Was Fac Traps Triggered 14 | . 1 1 4 2 1 5 . . Indirectly . | . . . . . . . . . Trap Hack Attempts . | . . . . . . . . . Triggered . | . . . . . . . . . Disarmed . | . . . . . . . . . Reprogrammed . | . . . . . . . . . Reused 6 | . . 3 . . . 3 . . Traps Extracted . | . . . . . . . . . Installed 7 | . . 3 . . . 4 . . Triggered 3 | . . . . . . 3 . . Most Traps Carried 4 | . . 2 . 4 4 4 . . Machines | -11 -10 -10 -8 -8 -8 -7 -7 -7 ---------- Run | Yrd Mat Sub Mat Gar Mat Fac Was Fac Machines Disabled 10 | . . . 2 5 . 3 . . Max in Single Turn 2 | . . . 1 2 . 2 . . Garrison Relay 1 | . . . . 1 . . . . Machines Repaired . | . . . . . . . . . Machines Dismantled . | . . . . . . . . . Machines Sabotaged . | . . . . . . . . . Overloaded Fab Kills . | . . . . . . . . . Hacking | -11 -10 -10 -8 -8 -8 -7 -7 -7 --------- Run | Yrd Mat Sub Mat Gar Mat Fac Was Fac Machines Accessed 53 | . 4 1 11 1 8 28 . . Terminals 34 | . 3 . 8 1 7 15 . . Fabricators 5 | . . . . . . 5 . . Repair Stations 5 | . 1 . 1 . 1 2 . . Recycling Units 2 | . . . . . . 2 . . Scanalyzers 3 | . . . 1 . . 2 . . Garrison Access 3 | . . . 1 . . 2 . . Total Hacks 161 | . 8 5 46 1 25 76 . . Successful 97 | . 6 5 24 . 15 47 . . Failed 64 | . 2 . 22 1 10 29 . . Catastrophic 13 | . 1 . 3 1 3 5 . . Database Lockouts . | . . . . . . . . . Manual 74 | . 4 . 31 1 11 27 . . Terminals 110 | . 6 . 37 1 18 48 . . Fabricators 13 | . . . . . . 13 . . Repair Stations 19 | . 2 . 6 . 7 4 . . Recycling Units 3 | . . . . . . 3 . . Scanalyzers 8 | . . . 2 . . 6 . . Garrison Access 3 | . . . 1 . . 2 . . Terminal Hacks 35 | . 1 5 4 . 8 17 . . Record 5 | . . 5 . . . . . . Part Schematic 1 | . . . . . . 1 . . Robot Analysis 1 | . . . . . . 1 . . Prototype ID Bank 2 | . 1 . 1 . . . . . Branch Access Points 2 | . . . . . 1 1 . . Machine Index 1 | . . . . . . 1 . . Terminal Index 2 | . . . . . 1 1 . . Scanalyzer Index 1 | . . . . . . 1 . . Alert Level 4 | . . . 1 . 2 1 . . Unreport Threat 9 | . . . 2 . 3 4 . . Locate Traps 2 | . . . . . . 2 . . Recall Investigation 2 | . . . . . . 2 . . Recall Extermination 1 | . . . . . . 1 . . Zone Layout 2 | . . . . . 1 1 . . Fabricator Hacks 10 | . . . . . . 10 . . Load Schematic 5 | . . . . . . 5 . . Build 5 | . . . . . . 5 . . Repair Station Hacks 17 | . 2 . 6 . 6 3 . . Scan Component 8 | . 1 . 3 . 3 1 . . Repair 8 | . 1 . 3 . 3 1 . . Refit 1 | . . . . . . 1 . . Recycling Unit Hacks 3 | . . . . . . 3 . . Retrieve Components 3 | . . . . . . 3 . . Scanalyzer 7 | . . . 2 . . 5 . . Insert Component 3 | . . . 1 . . 2 . . Analyze 4 | . . . 1 . . 3 . . Garrison Access Hacks 1 | . . . 1 . . . . . Unlock Access 1 | . . . 1 . . . . . Unauthorized Hacks 24 | . 3 . 11 . 1 9 . . Terminals 23 | . 3 . 11 . 1 8 . . Track 5 | . . . . . . 5 . . Assimilate 3 | . . . 2 . . 1 . . Botnet 5 | . . . 2 . 1 2 . . Operators 1 | . . . 1 . . . . . Skim 9 | . 3 . 6 . . . . . Fabricators 1 | . . . . . . 1 . . Prioritize 1 | . . . . . . 1 . . Repair Stations . | . . . . . . . . . Recycling Units . | . . . . . . . . . Scanalyzers . | . . . . . . . . . Garrison Access . | . . . . . . . . . Data Cores Recovered . | . . . . . . . . . Used . | . . . . . . . . . Hacking Detections 39 | . 4 . 11 . 4 20 . . Full Trace Events 11 | . . . 2 . 1 8 . . Feedback Events 1 | . . . . . . 1 . . Corruption 1 | . . . . . . 1 . . Feedback Blocked . | . . . . . . . . . Robot Schematics Acquired . | . . . . . . . . . Robots Built . | . . . . . . . . . Authchips . | . . . . . . . . . Time . | . . . . . . . . . Total Robot Build Rating . | . . . . . . . . . Part Schematics Acquired 3 | . . . 1 . . 2 . . Parts Built 5 | . . . . . . 5 . . Authchips . | . . . . . . . . . Time 284 | . . . . . . 284 . . Total Part Build Rating 24 | . . . . . . 24 . . Parts Repaired 8 | . 1 . 3 . 3 1 . . Time 276 | . 26 . 96 . 132 22 . . Parts Recycled . | . . . . . . . . . Recycled Matter . | . . . . . . . . . Retrieved Matter . | . . . . . . . . . Retrieved Components 2 | . . . . . . 2 . . Parts Scanalyzed 2 | . . . 1 . . 1 . . Part Schematics Acquired 2 | . . . 1 . . 1 . . Parts Damaged . | . . . . . . . . . Bothacking | -11 -10 -10 -8 -8 -8 -7 -7 -7 ------------ Run | Yrd Mat Sub Mat Gar Mat Fac Was Fac Used RIF Installer . | . . . . . . . . . Robots Hacked . | . . . . . . . . . Non-combat . | . . . . . . . . . Combat . | . . . . . . . . . Robot Hacks Applied . | . . . . . . . . . Relay Couplers Released 5 | . . . . 5 . . . . Machine Destruction 5 | . . . . 5 . . . . Fabnet Peak Effective % . | . . . . . . . . . Robots Rewired . | . . . . . . . . . Allies Hacked . | . . . . . . . . . Hacks Repelled . | . . . . . . . . . Allies | -11 -10 -10 -8 -8 -8 -7 -7 -7 -------- Run | Yrd Mat Sub Mat Gar Mat Fac Was Fac Total Allies 2 | . . . 1 . . 1 . . Largest Group 1 | . . . 1 . . 1 . . Highest-Rated Group 10 | . . . 10 . . 10 . . Highest-Rated Ally 10 | . . . 10 . . 10 . . Total Orders 1 | . . . 1 . . . . . STAY 1 | . . . 1 . . . . . Ally Attacks . | . . . . . . . . . Total Damage . | . . . . . . . . . Kills . | . . . . . . . . . Allies Corrupted . | . . . . . . . . . Allies Melted . | . . . . . . . . . Intel | -11 -10 -10 -8 -8 -8 -7 -7 -7 ------- Run | Yrd Mat Sub Mat Gar Mat Fac Was Fac Robot Analysis Total 1 | . . . . . . 1 . . Derelict Logs Recovered 2 | . . 2 . . . . . . Drone Launches . | . . . . . . . . . Drone Recoveries . | . . . . . . . . . Exploration | -11 -10 -10 -8 -8 -8 -7 -7 -7 ------------- Run | Yrd Mat Sub Mat Gar Mat Fac Was Fac Turns Passed 13239 | 62 1113 4333 2727 1691 1520 1719 30 44 Spaces Moved 9744 | 38 579 2653 1304 877 632 3515 85 61 Core 20 | 20 . . . . . . . . Treads 5289 | 18 579 1853 1304 877 632 26 . . Legs . | . . . . . . . . . Wheels 800 | . . 800 . . . . . . Hover . | . . . . . . . . . Flight 3635 | . . . . . . 3489 85 61 Fastest Speed 29 | 50 160 95 160 163 163 29 35 35 Average Speed 109 | 138 160 145 160 163 163 34 35 35 Slowest Speed 260 | 200 160 260 163 163 165 163 35 35 Overloaded Moves 6 | . . . . . . 6 . . Propulsion Burnouts . | . . . . . . . . . Robots Hopped 10 | . . . . . . 10 . . Cave-ins Triggered 1 | . . . . . . 1 . . Exploration Rate (%) 61 | 3 56 97 86 89 61 78 77 3 Regions Visited 8 Branch Regions 1 Pre-discovered Areas 3 | . . 1 2 . . . . . Known Exits Taken 2 | . . . 1 . 1 . . . Unknown Exits Taken 3 | 1 1 1 . . . . . . Scrap Searched 14 | . . 14 . . . . . . Spaces Dug 76 | . . 8 4 16 . 47 . 1 Terrain Destroyed 219 | . . 8 35 34 47 94 . 1 Melee 51 | . . 8 . 5 . 37 . 1 Projectile 93 | . . . 35 1 47 10 . . AOE 75 | . . . . 28 . 47 . . Terrain Rammed . | . . . . . . . . . Walls Destroyed . | . . . . . . . . . Machines Disabled . | . . . . . . . . . Actions | -11 -10 -10 -8 -8 -8 -7 -7 -7 --------- Run | Yrd Mat Sub Mat Gar Mat Fac Was Fac Total 11349 | 44 686 2936 1734 1023 933 3833 84 76 Wait 698 | . 57 104 249 39 165 74 . 10 Move 9718 | 37 578 2652 1304 875 631 3496 84 61 Hop 9 | . . . . . . 9 . . Pick Up 57 | 1 7 15 17 8 6 3 . . Fast Attach 53 | 6 3 8 15 2 2 17 . . Attach 22 | . . 6 3 1 1 11 . . Detach 20 | . . 2 4 1 . 13 . . Swap 85 | . . 25 11 12 17 20 . . Drop 71 | . . 15 21 12 4 19 . . Fire 389 | . 38 75 106 52 83 35 . . Melee 126 | . . 31 . 12 . 78 . 5 Ram . | . . . . . . . . . Kick . | . . . . . . . . . Crush 34 | . 3 . 4 6 21 . . . Escape Stasis 49 | . . . . . . 49 . . Rewire 1 | . . . . 1 . . . . Trap 7 | . . 3 . . . 4 . . Miscellaneous 10 | . . . . 2 3 5 . . Route ------- -11/Scrapyard -10/Materials (discovered 3 exits: [*Mat] / [*Min] / *Sub) -10/Subcaves (discovered 2 exits: *Mat x2) -8/Materials (discovered 4 exits: *Fac x3 / Gar) -8/Garrison (discovered 3 exits: *Mat x3) -8/Materials (discovered 3 exits: *Fac x3) -7/Factory (discovered 7 exits: *Fac x3 / Sto x2 / *Low x2) -7/Waste -7/Factory History --------- Turn | Location | Event 9 | -11/Scrapyard | Discovered new exit (range 16) 63 | -11/Scrapyard | Entered Materials 178 | -10/Materials | Discovered new exit (range 9) 305 | -10/Materials | Build established: Mutant 520 | -10/Materials | Discovered new exit (range 13) 1061 | -10/Materials | Repaired Lgt. Treads 1160 | -10/Materials | Discovered new exit (range 7) 1176 | -10/Materials | Entered Subcaves 1178 | -10/Subcaves | Learned 4 Materials zone layouts 1254 | -10/Subcaves | Shifting Twisted Machinery released Ripper 1701 | -10/Subcaves | Shifting Twisted Machinery released Sub. Machine Gun 1727 | -10/Subcaves | Shifting Twisted Machinery released Mak. Shrapnel Gun 2126 | -10/Subcaves | Shifting Twisted Machinery released Piercing Trap 2276 | -10/Subcaves | Lost 3 parts (1p1n1u) 2546 | -10/Subcaves | Core integrity fell below 50% 2631 | -10/Subcaves | Discovered new exit (range 7) 2690 | -10/Subcaves | Learned Materials terminal intel 2851 | -10/Subcaves | Shifting Twisted Machinery released Sub. Monowheel 2976 | -10/Subcaves | Disturbed a concealed Subdweller 3929 | -10/Subcaves | Visited Clippyterm 3933 | -10/Subcaves | Learned location of Deep Caves (-6) 3933 | -10/Subcaves | Learned Research security intel 3942 | -10/Subcaves | A swath of the cavern ceiling suddenly collapsed 4418 | -10/Subcaves | Discovered new exit (range 12) 4543 | -10/Subcaves | Lost 3 parts (1p1n1w) 5164 | -10/Subcaves | Build established: Derelict-Mutant 5509 | -10/Subcaves | Entered Materials 5509 | -8/Materials | Evolved 4 slots: Propulsion x1, Utility x3 5510 | -8/Materials | Identified exit to Factory 5511 | -8/Materials | Loaded intel: 12 terminal locations 6424 | -8/Materials | Garrison activated, responded to threat 6693 | -8/Materials | Build established: Mutant 7252 | -8/Materials | Discovered exit to Factory (range 16) 7548 | -8/Materials | Discovered exit to Factory (range 16) 7667 | -8/Materials | Learned location of Recycling (-7) 7710 | -8/Materials | Learned location of Zion (-6) 7742 | -8/Materials | Learned Storage security intel 7778 | -8/Materials | Learned location of 1 exit from Lower Caves 7783 | -8/Materials | Learned location of 2 exits from Factory 7818 | -8/Materials | Learned 2 Lower Caves zone layouts 7849 | -8/Materials | Learned location of 1 exit from Extension 7873 | -8/Materials | Repaired Multitool 7889 | -8/Materials | Learned Factory emergency access door positions 7906 | -8/Materials | Repaired Shield Generator 7939 | -8/Materials | Repaired Imp. Ion Engine 8181 | -8/Materials | Identified exit to Garrison 8236 | -8/Materials | Entered Garrison 8268 | -8/Garrison | Triggered checkpoint 8502 | -8/Garrison | Destroyed 13 combat bots 8568 | -8/Garrison | Triggered checkpoint 8678 | -8/Garrison | Discovered new exit (range 15) 8878 | -8/Garrison | Triggered checkpoint 9036 | -8/Garrison | Triggered checkpoint 9052 | -8/Garrison | Garrison Relay disabled 9145 | -8/Garrison | Discovered new exit (range 9) 9256 | -8/Garrison | Triggered checkpoint 9331 | -8/Garrison | Discovered new exit (range 8) 9374 | -8/Garrison | Triggered checkpoint 9758 | -8/Garrison | Attempted to access garrison exit controls, blocked by remote lockdown 9927 | -8/Garrison | Entered Materials 10459 | -8/Materials | Discovered exit to Factory (range 4) 10712 | -8/Materials | Core integrity fell below 50% 10853 | -8/Materials | Repaired Hrd. Heavy Armor Plating 11197 | -8/Materials | Repaired Mic. Fission Core 11230 | -8/Materials | Repaired Shield Generator 11447 | -8/Materials | Entered Factory 11447 | -7/Factory | Evolved 2 slots: Utility x2 11448 | -7/Factory | Identified exit to Factory 11448 | -7/Factory | Identified exit to Lower Caves 11831 | -7/Factory | Build established: Hacker-Mutant 11866 | -7/Factory | Identified exit to Storage 12336 | -7/Factory | Fabricated Adv. Hacking Suite? 12424 | -7/Factory | Fabricated Adv. Hacking Suite? 12465 | -7/Factory | Discovered exit to Factory (range 12) 12647 | -7/Factory | Search patrols dispatched 12692 | -7/Factory | Discovered exit to Factory (range 15) 12796 | -7/Factory | Fabricated Cld. VTOL Module? 12860 | -7/Factory | Fabricated Cld. VTOL Module? 12896 | -7/Factory | Repaired Ripper 12917 | -7/Factory | Build established: Hacker-Sprinter 12959 | -7/Factory | Fabricated Cld. VTOL Module? 13047 | -7/Factory | Search patrols dispatched 13113 | -7/Factory | Cargo convoy interrupted 13137 | -7/Factory | Core integrity fell below 50% 13156 | -7/Factory | Lost 5 parts (1p2n1u1w) 13158 | -7/Factory | Crushed by falling debris 13166 | -7/Factory | Sucked down chute 13166 | -7/Factory | Entered Waste 13170 | -7/Waste | Spotted C-40 Crusher 13170 | -7/Waste | Spotted C-40 Crusher 13173 | -7/Waste | Spotted C-40 Crusher 13175 | -7/Waste | Spotted C-40 Crusher 13178 | -7/Waste | Spotted C-40 Crusher 13186 | -7/Waste | Discovered new exit (range 16) 13196 | -7/Waste | Entered Factory 13231 | -7/Factory | Core integrity fell below 20% 13240 | -7/Factory | Destroyed by S-27 Virus with Autogun Last Messages --------------- 13158_ Adv. Hacking Suite destroyed. 13158_ System corrupted by crushing effect (+5). 13158_ U-05 Engineer builds a Wall. 13166_ Triggered Chute Trap. 13166_ A hatch slides open and sucks a vortex of air into the floor. LOCATION=UNKNOWN GOAL=ESCAPE 13169_ System corrupted: Ripper fused. 13186_ EXIT=FOUND 13196_ 1G&NBCXZ4=5NLASNJ LOCATION=UNKNOWN GOAL=ESCAPE 13212_ ALERT: All DSF locations entering lockdown mode. 13217_ System corrupted: Heat flow error (+292). 13220_ U-05 Engineer builds a Wall. 13225_ Imp. Utility Shielding destroyed. 13225_ System Shield destroyed. 13226_ Hacking Suite destroyed. 13235_ Ripper destroyed. 13239_ /D:NG35YF Map ----- +----------------------------------------------------+ | ?????????????????????????????????????????????????? | | ?????????????????????????????????????????????????? | | ?????????????????????????????????????????????????? | | ?????????????????????????????????????????????????? | | ?????????????????????????????????????????????????? | | ?????????????????????????????????????????????????? | | ?????????????????????????????????????????????????? | | ?????????????????????????????????????????????????? | | ?????????????????????????????????????????????????? | | ?????????????????????????????????????????????????? | | ????????????????????????????????? ???????????????? | | ???????????????????????????????## ???????????????? | | ??????????????????????????????? ????????????????? | | ??????????????????????????????? ????????????????? | | ?????????????????????????????? ?????????????????? | | ?????????????????????????????? ?????????????????? | | ??????????????????############ ??????????????????? | | #############?????# ??????????????????? | | #?????# ???????????????????? | | #?????# ???????????????????? | | """"""" #?????# ? ????????????????????? | | """"""" #?????# ? ???????????????a????? | | """"""" #?????# ##########???????????????? | | """"""" #?????# # #???????????????? | | #?????# # #???????????????? | | """"""" #?????# #@ #???????????????? | | """"""" #?????# # #???????????????? | | """"""" #?????# /sss #???????????????? | | """"""" #?????# # [ #???????????????? | | ! #?????# # #???????????????? | | ######+############ # #???????????????? | | ??# # #???????????????? | | ??# ##########???????????????? | | ??# #????????????????????????? | | ??# #????????????????????????? | | ??# #????????????????????????? | | ?######+############/####????????????????????????? | | ?# #???" ??????????????????????????? | | ?# """ !#?"Y" """ ????????????????????????? | | ?# """ !| # " " """ ??????????????????????? | | ?# """ !| # """ #?????????????????????? | | ?# # #?????????????????????? | | ?# """ """ #] [/ #?????????????????????? | | ?# """ """ # [/ ? #?????????????????????? | | ?# ???"" """ # ?????????????????????????? | | ??????? # ??????????????????????????? | | ??????? ??? # ??????????????????????????? | | ??????? ????# ??????????????????????????? | | ??????? ????# ??????????????????????????? | | ???????###????#### ####??????????????????????????? | +----------------------------------------------------+ Best States ------------- Heat Dissipation 48 Energy Generation 17 Energy Capacity 265 Matter Stores 300 Matter Capacity 300 Sight Range 21 Terrain Scan Density 10 Armor Coverage 800 Utility Shielding 66 Evasion (%) 64 Targeting Accuracy 8 Recoil Reduction 3 Offensive Hacking 38 Defensive Hacking 21 Trap Extractor Capacity 6 Item Schematics ----------------- Multitool | -8/Materials | Scanalyzed Adv. Hacking Suite | -7/Factory | Scanalyzed Cld. VTOL Module | -7/Factory | Hacked Robot Schematics ------------------ None Fabricated ------------ Adv. Hacking Suite | x1 | -7/Factory Adv. Hacking Suite | x1 | -7/Factory Cld. VTOL Module | x1 | -7/Factory Cld. VTOL Module | x1 | -7/Factory Cld. VTOL Module | x1 | -7/Factory Alien Tech Used ----------------- None Achievements -------------- None Challenges ------------ None Game ------ Seed ControlRagnarokMount Manual? 0 Play Time 01:13:36 Cumulative 647.5 hours Start 2025.03.13 @ 07:33:19 End 2025.03.13 @ 19:01:26 Sessions 5 Manual Loads 0 Difficulty Rogue Special Mode None Game No. 348 Rogue 348 Adventurer 0 Explorer 0 Win Type - Total 52 Types 35/4/5/1/1/1/3/1/1 Lore% 89 Gallery% 88 Achievement% 89 Wizard Run 0 Options --------- Layout 0 ASCII 0 Keyboard 1 Movement Numpad Keybinds 0 Fullscreen 2 Font 18/SmallcapsGlow Map View 76x50 Zoom Use 0% Tactical HUD 1 Map Filters NONE Filters NONE Steam 1 RUN: 11040973-9984-4e52-9c44-8a349aba663b